[Event "Szansa Chess Open 2022"]
[Site "Warsaw"]
[Date "2022.09.18"]
[Round "11.14"]
[White "Klim, Filip"]
[Black "Lapaj, Mateusz"]
[Result "1/2-1/2"]
[ECO "C15"]
[WhiteElo "2011"]
[BlackElo "2216"]
[Annotator "TA"]
[PlyCount "99"]
[EventDate "2022.09.17"]
[EventCountry "POL"]
[SourceTitle "playchess.com"]
[Source "ChessBase"]
[SourceQuality "1"]
[TimeControl "900+10"]

{[%evp 12,99,33,4,0,7,8,0,0,-71,-77,-75,-82,-64,-64,-75,-85,-92,40,-112,-83,-111,-79,-80,-70,-104,-73,-89,-76,-108,-86,-78,-61,-63,-73,-102,-105,-112,-64,-62,-63,-66,-68,-71,-71,-62,-47,-51,-56,-51,-62,-238,-265,-252,-271,-320,-303,-316,-297,-303,-316,-300,-320,-354,-339,-295,-245,-415,-440,-395,-8,-8,-16,-8,-8,-8,-8,-16,0,-118,-118,-415,0,-395,0,-343,0,-198,0,-251]} 1. e4 {[%emt 0:00:01]} e6 {[%emt 0:00:01]} 2. d4 {[%emt 0:00:02]} d5 {[%emt 0:00:01]} 3. Nc3 {[%emt 0:00:04]} Bb4 {[%emt 0:00:01]} 4. Nge2 {[%emt 0:00:06][%cal Bg1e2,Be2g3,Bg3e4][%mdl 32]} dxe4 {[%emt 0:00:02]} 5. a3 {[%emt 0:00:01]} Be7 {[%emt 0:00:02]} 6. Nxe4 {[%emt 0:00:09]} Nf6 {[%emt 0:00:01]} 7. N2g3 {[%emt 0:00:44]} Nxe4 {[%emt 0:00:10] C15: French: 3 Nc3 Bb4: Unusual White 4th moves.} 8. Nxe4 {[%emt 0:00:02]} Nc6 {[%emt 0:00:01]} 9. Be3 {[%emt 0:00:14]} O-O {[%emt 0:00:07]} 10. c3 {[%emt 0:00:14]} (10. Qd2 $11 {keeps the balance.}) 10... f5 $1 $17 {[%emt 0:00:24][%cal Bf7f5,Bf5f4][%mdl 32]} 11. Nc5 {[%emt 0:00:30]} f4 {[%emt 0:00:14]} 12. Bd2 {[%emt 0:00:38]} Bxc5 {[%emt 0:01:23]} 13. dxc5 {[%emt 0:00:01] [#]} Qg5 $146 {[%emt 0:00:07]} ({Predecessor:} 13... Qd5 14. Qa4 f3 15. g3 Qxc5 16. Be3 Qa5 17. Qh4 e5 18. Bc4+ Kh8 19. a4 Nd4 {1-0 (32) Theodorakopoulos,G (2045)-Foukakis,T (2180) Poros 1998}) 14. Qf3 {[%emt 0:00:52]} Qxc5 {[%emt 0:01:04]} (14... e5 $17 {White must now prevent ...Qg6.} 15. h4 Qf6) 15. O-O-O $2 {[%emt 0:00:08]} (15. Bxf4 $14 {stays ahead.} e5 16. Be3 Rxf3 17. Bxc5) 15... e5 $1 {[%emt 0:00:17]} 16. Bd3 {[%emt 0:00:14]} Bf5 {[%emt 0:00:16]} 17. Bxf5 {[%emt 0:03:31]} Rxf5 {[%emt 0:00:01]} 18. Kb1 {[%emt 0:00:05]} Re8 {[%emt 0:03:25]} 19. Rhe1 {[%emt 0:00:11]} Rf7 {[%emt 0:00:29][%cal Oe5e4]} 20. Re4 {[%emt 0:00:48]} Rd8 {[%emt 0:00:50] Threatens to win with ...Rfd7.} 21. Be1 {[%emt 0:01:05]} Rfd7 {[%emt 0:03:35]} 22. Rxd7 {[%emt 0:00:18]} Rxd7 {[%emt 0:00:01]} 23. Qe2 {[%emt 0:01:32][%cal Oe4f4]} Qd5 {[%emt 0:00:25]} 24. Kc2 {[%emt 0:00:31]} b5 {[%emt 0:02:21]} ({Reject} 24... f3 $6 25. Qxf3 b5 26. Qe2 $11 (26. Kb1 g6 $11)) ({Black should play} 24... h6 $17 25. Kc1 Qd6) 25. Rxf4 $15 {[%emt 0:00:42][%cal Of2f3]} Qxg2 {[%emt 0:00:30]} 26. Rg4 {[%emt 0:01:20]} Qd5 {[%emt 0:00:05]} 27. f4 {[%emt 0:00:10]} e4 {[%emt 0:00:16][%cal Be5e4,Be4d3][%mdl 32]} 28. Rg5 {[%emt 0:00:11]} Qd3+ {[%emt 0:00:33]} 29. Qxd3 {[%emt 0:00:03]} exd3+ {[%emt 0:00:01][%mdl 4096] Endgame KRB-KRN} 30. Kd1 $1 {[%emt 0:00:24]} a6 {[%emt 0:00:05]} 31. Rg3 $2 {[%emt 0:01:16]} (31. a4 $15) 31... Na5 $1 $19 {[%emt 0:00:21]} 32. Bf2 {[%emt 0:01:01]} Nb3 {[%emt 0:00:07]} 33. Bd4 {[%emt 0:00:36]} c5 $1 {[%emt 0:02:04]} ({Inferior is} 33... Nxd4 34. Rxd3 c5 35. cxd4 $17) 34. Be5 {[%emt 0:00:17]} c4 {[%emt 0:00:54]} 35. h4 {[%emt 0:00:51]} Na5 {[%emt 0:00:01]} 36. h5 {[%emt 0:01:13]} Nc6 {[%emt 0:00:01]} 37. Bf6 {[%emt 0:00:07]} Rf7 {[%emt 0:00:14]} 38. Bg5 {[%emt 0:00:03]} Ne7 {[%emt 0:00:34]} 39. h6 $2 {[%emt 0:00:41]} (39. Bxe7 Rxe7 40. b3) 39... Nd5 {[%emt 0:00:22]} 40. Kd2 {[%emt 0:00:17]} Nxf4 $2 {[%emt 0:00:12]} ({Better is} 40... g6 $19 41. Rf3 Rf8) 41. Bxf4 $11 {[%emt 0:00:01]} Rxf4 {[%emt 0:00:00]} 42. Rxg7+ $19 {[%emt 0:00:02] KR-KR} Kf8 {[%emt 0:00:01]} 43. Rxh7 {[%emt 0:00:07]} Rf2+ {[%emt 0:00:01]} 44. Kc1 $1 {[%emt 0:00:17]} Rh2 {[%emt 0:00:06]} 45. Rh8+ {[%emt 0:00:23]} (45. a4 $1 $11 {was the only way to keep the balance.}) 45... Kf7 $17 {[%emt 0:00:07] Strongly threatening ...Kg6.} 46. h7 $2 {[%emt 0:00:02][%mdl 8192]} (46. a4 $17) 46... Rh1+ {[%emt 0:00:33]} 47. Kd2 {[%emt 0:00:01][%cal Oa3a4]} Rh2+ {[%emt 0:00:01]} 48. Kc1 $1 {[%emt 0:00:02][%cal Oa3a4] [#]} Rh1+ {[%emt 0:00:01]} (48... Kg6 $142 $1 49. Ra8 Rxh7) 49. Kd2 $19 {[%emt 0:00:01][%cal Oa3a4] [#]} Rh2+ {[%emt 0:00:01]} (49... Kg6 $142 $1 50. Ra8 Rxh7 51. Rxa6+ Kf5) 50. Kc1 $1 {[%emt 0:00:39][%mdl 32768] Weighted Error Value: White=0.33/Black=0.62. An unexpected result.} 1/2-1/2

[Event "Szansa Chess Open 2022"]
[Site "Warsaw"]
[Date "2022.09.18"]
[Round "11.15"]
[White "Tsiapko, Andrii"]
[Black "Smieszek, Wojciech"]
[Result "0-1"]
[ECO "E09"]
[WhiteElo "1590"]
[BlackElo "2082"]
[Annotator "TA"]
[PlyCount "92"]
[EventDate "2022.09.17"]
[EventCountry "POL"]
[SourceTitle "playchess.com"]
[Source "ChessBase"]
[SourceQuality "1"]
[TimeControl "900+10"]

{[%evp 23,92,30,31,41,39,28,33,24,27,14,56,52,47,48,51,26,30,20,78,18,73,31,135,134,126,48,120,-18,78,68,65,58,89,0,0,0,20,0,0,0,-7,0,0,0,28,42,18,0,3,3,109,0,6,0,0,-23,-23,-23,0,0,0,0,0,0,0,-268,-225,-527,-514,-506,-488]} 1. d4 {[%emt 0:00:01]} d5 {[%emt 0:00:01]} 2. c4 {[%emt 0:00:03]} e6 {[%emt 0:00:01]} 3. Nf3 {[%emt 0:00:02]} c6 {[%emt 0:00:01]} 4. Nbd2 {[%emt 0:00:05]} Nf6 {[%emt 0:00:02]} 5. g3 {[%emt 0:00:02]} Nbd7 {[%emt 0:00:02]} 6. Bg2 {[%emt 0:00:02]} Be7 {[%emt 0:00:01]} 7. O-O {[%emt 0:00:06]} O-O {[%emt 0:00:03]} 8. Qc2 {[%emt 0:00:04]} b6 {[%emt 0:00:02]} 9. e4 {[%emt 0:00:02]} Bb7 {[%emt 0:00:01]} 10. e5 {[%emt 0:00:05]} Ne8 {[%emt 0:00:02]} 11. cxd5 {[%emt 0:00:04]} cxd5 {[%emt 0:00:03]} 12. Re1 {[%emt 0:00:41]} Rc8 {[%emt 0:00:11]} 13. Qa4 {[%emt 0:00:04] E09: Closed Catalan: Main Line: 7 Qc2 c6 8 Nbd2.} Nc7 {[%emt 0:00:38]} 14. h4 {[%emt 0:00:36]} a5 {[%emt 0:01:18]} 15. Nf1 {[%emt 0:02:19] White is slightly better.} Ba6 {[%emt 0:00:36]} 16. Bg5 {[%emt 0:01:29] [#]} Bd3 $146 {[%emt 0:00:47]} ({Predecessor:} 16... Re8 17. Rac1 Nf8 18. Qb3 Na8 19. Ne3 Rxc1 20. Rxc1 Qb8 21. Bf1 Bxf1 22. Kxf1 h6 23. Bxe7 Rxe7 {1-0 (74) Ibrahimov,R (2532)-Mirzoev,A (2481) Konya 2011}) 17. Rac1 {[%emt 0:00:45]} h6 {[%emt 0:00:49]} 18. Bxe7 {[%emt 0:00:03]} Qxe7 {[%emt 0:00:02]} 19. Rc3 {[%emt 0:00:30]} Bb5 {[%emt 0:04:06]} 20. Qc2 {[%emt 0:00:29]} Nb8 {[%emt 0:00:03]} (20... Bc4 $11) 21. Rc1 {[%emt 0:00:19]} (21. a4 $16 Be8 22. Rc1) 21... Nba6 {[%emt 0:00:02]} (21... Bc4 $11) 22. a3 {[%emt 0:02:00]} Qd7 {[%emt 0:03:12]} (22... Bd7 $14) 23. Ne3 $16 {[%emt 0:00:26]} Rb8 {[%emt 0:01:00]} 24. b3 {[%emt 0:02:06]} (24. Rxc7 $2 Nxc7 25. Ne1 (25. Qxc7 $2 Rbc8 $19) 25... Rfc8 $17) (24. Bh3 $16) 24... a4 {[%emt 0:00:47]} ({Black should try} 24... Qe7 $14) 25. Bf1 {[%emt 0:02:51]} ({Reject} 25. bxa4 $6 Bxa4 26. Qb2 (26. Rxc7 $2 Nxc7 27. Qd3 Rfc8 $19) 26... Nb5 $11) (25. b4 $16) 25... Rb7 {[%emt 0:01:38]} (25... Bxf1 $11 26. Rxf1 (26. Kxf1 Nb5 $15) 26... Nb5) 26. bxa4 {[%emt 0:01:35]} Bxa4 {[%emt 0:00:02]} 27. Qb2 {[%emt 0:00:35]} Rfb8 {[%emt 0:01:42]} 28. Nc2 {[%emt 0:00:52]} (28. Ng4 $16) 28... Nb5 $11 {[%emt 0:00:40]} 29. Re3 {[%emt 0:00:11]} Rc7 {[%emt 0:00:06]} 30. Nb4 {[%emt 0:00:39]} Rxc1 {[%emt 0:00:41]} 31. Qxc1 {[%emt 0:00:02]} Nxb4 {[%emt 0:00:56]} 32. axb4 {[%emt 0:00:01]} Rc8 {[%emt 0:00:00]} 33. Qa1 {[%emt 0:00:16]} Na7 34. Ra3 {[%emt 0:00:30]} b5 {[%emt 0:00:37]} 35. Bxb5 {[%emt 0:00:46]} Nxb5 {[%emt 0:00:01]} 36. Rxa4 {[%emt 0:00:02]} Rc4 {[%emt 0:00:02]} (36... Qc6 $11 {remains equal.}) 37. Qb1 {[%emt 0:00:20]} (37. Ra8+ $16 Rc8 38. Qa6) 37... g6 {[%emt 0:00:05]} 38. Ra8+ {[%emt 0:00:08]} Kg7 $1 {[%emt 0:00:03]} 39. Qb2 {[%emt 0:00:10]} Qc6 {[%emt 0:00:14][%mdl 1024] Black has compensation.} 40. Ra2 {[%emt 0:00:13]} Rc1+ {[%emt 0:00:10]} (40... Rc3 $5 {[%cal Rc3f3]} 41. Kg2 Qc4 $15) 41. Kg2 {[%emt 0:00:04]} Qc4 {[%emt 0:00:45] [#] ( -> ...Qf1+)} 42. Nd2 {[%emt 0:00:19] Prevents Qf1+.} Qc7 {[%emt 0:00:25]} 43. Nb3 {[%emt 0:00:07]} Rc4 {[%emt 0:00:02]} 44. Ra5 $2 {[%emt 0:00:14][%mdl 8192]} (44. Qd2 $11) 44... Rxb4 $19 {[%emt 0:00:10] ...Qxa5 is the strong threat.} 45. Qe2 $2 {[%emt 0:00:10] [#]} (45. Ra8 {was the crucial defense.}) 45... Nxd4 {[%emt 0:00:10]} ({Inferior is} 45... Rxb3 46. Rxb5 Rxb5 47. Qxb5 $11) 46. Nxd4 {[%emt 0:00:06]} Qxa5 {[%emt 0:00:08] Weighted Error Value: White=0.44/Black=0.24 (precise)} 0-1

[Event "Szansa Chess Open 2022"]
[Site "Warsaw"]
[Date "2022.09.18"]
[Round "11.16"]
[White "Wadelek, Karol"]
[Black "Adamski, Adam"]
[Result "0-1"]
[ECO "A13"]
[WhiteElo "1943"]
[BlackElo "1886"]
[Annotator "TA"]
[PlyCount "80"]
[EventDate "2022.09.17"]
[EventCountry "POL"]
[SourceTitle "playchess.com"]
[Source "ChessBase"]
[SourceQuality "1"]
[TimeControl "900+10"]

{[%evp 11,80,1,6,10,15,0,33,36,39,25,61,64,67,60,64,51,70,66,85,65,59,42,117,17,29,17,28,22,22,-22,-10,-10,-11,-11,0,-40,-19,-15,-15,-22,0,-8,0,0,0,0,0,0,0,-157,-164,-191,-124,-116,-117,-120,-124,-110,-96,-93,-94,-94,0,-145,-146,-654,-225,-656,-182,-642,-624]} 1. c4 {[%emt 0:00:03]} e6 {[%emt 0:00:05]} 2. Nf3 {[%emt 0:00:08]} d5 {[%emt 0:00:03]} 3. e3 {[%emt 0:00:02]} Nf6 {[%emt 0:00:05]} 4. Nc3 {[%emt 0:00:02]} Be7 {[%emt 0:00:06]} 5. b3 {[%emt 0:00:03]} O-O {[%emt 0:00:11]} 6. d4 {[%emt 0:00:54]} b6 {[%emt 0:00:15]} 7. cxd5 {[%emt 0:00:21] 7.Bb2 gains popularity. D37: Queen's Gambit Declined: 5 Bf4.} Bb4 {[%emt 0:00:18]} 8. Bd2 {[%emt 0:00:14] [#]} Bxc3 $146 {[%emt 0:00:37]} ({Predecessor:} 8... exd5 9. Bd3 Re8 10. a3 Bd6 11. Nb5 Bf8 12. Qc2 c6 13. Nc3 Nbd7 14. O-O Bb7 {1-0 (39) Prizant,J (2504)-Nadeev,S (2323) Kimry 2011}) 9. Bxc3 {[%emt 0:00:02] Threatens to win with dxe6. White is slightly better.} Nxd5 {[%emt 0:00:02]} 10. Bd2 {[%emt 0:00:12]} Ba6 {[%emt 0:00:04]} 11. Bxa6 {[%emt 0:01:04]} Nxa6 {[%emt 0:00:02]} 12. e4 {[%emt 0:01:04]} Nf6 {[%emt 0:00:07]} 13. Qe2 {[%emt 0:00:05] Hoping for e5.} Qc8 {[%emt 0:00:08]} 14. O-O {[%emt 0:00:08]} Qb7 {[%emt 0:00:09]} 15. Rfe1 {[%emt 0:00:13]} c5 {[%emt 0:00:06]} 16. Bc3 {[%emt 0:01:01][%cal Od4d5]} Rfd8 {[%emt 0:02:04] Against d5} (16... cxd4 $14 17. Bxd4 (17. Nxd4 Nc5 $14) 17... Nd7) 17. Rad1 {[%emt 0:02:00]} (17. d5 $1 $16) 17... cxd4 $11 {[%emt 0:00:34]} 18. Bxd4 {[%emt 0:00:47]} Nd7 {[%emt 0:05:46][%cal Bf6d7,Bd7c5,Bc5d3][%mdl 32]} 19. Qb2 {[%emt 0:01:48]} f6 {[%emt 0:00:05]} 20. Nd2 {[%emt 0:01:52]} e5 {[%emt 0:00:08]} 21. Be3 {[%emt 0:01:37]} Ndc5 {[%emt 0:00:05] White must now prevent ...Nd3.} 22. Qb1 {[%emt 0:00:13]} Nd3 {[%emt 0:00:47]} 23. Rf1 {[%emt 0:00:06]} Rd7 {[%emt 0:00:14]} 24. f3 {[%emt 0:00:21]} Rad8 $36 {[%emt 0:00:02][%mdl 2048] Black is more active.} 25. Nc4 {[%emt 0:00:15]} Nac5 {[%emt 0:01:55][%cal Ba6c5,Bc5e6,Be6f4][%mdl 32]} 26. Nb2 {[%emt 0:02:18]} Nxb2 {[%emt 0:00:13] Pair of Knights!} 27. Rxd7 {[%emt 0:00:02]} Qxd7 {[%emt 0:00:03]} 28. Qxb2 {[%emt 0:00:01]} Ne6 {[%emt 0:00:06]} 29. Rc1 {[%emt 0:00:19]} Qd3 {[%emt 0:00:03]} 30. Bf2 {[%emt 0:00:20]} (30. Kf2 $11) 30... Nf4 $1 $17 {[%emt 0:00:07]} 31. Re1 {[%emt 0:01:12] [#] Inhibits Ne2+.} Qd2 {[%emt 0:03:33]} (31... Rc8 $1 $19 {[%cal Rc8c2] aiming for ...Rc2.} 32. Re3 Rc2 33. Rxd3 Rxb2) 32. Qxd2 {[%emt 0:00:30]} Rxd2 {[%emt 0:00:02][%mdl 4096] Endgame KRB-KRN} 33. Ra1 {[%emt 0:00:33]} h5 {[%emt 0:00:55][%cal Oh5h4]} 34. Kf1 {[%emt 0:00:03]} Rc2 {[%emt 0:00:05] Black has more active pieces.} 35. a4 {[%emt 0:00:27]} Rb2 {[%emt 0:00:41]} 36. a5 {[%emt 0:00:13] [#]} Rxb3 {[%emt 0:00:15]} (36... bxa5 $1 $17 37. g3 Ne6) 37. axb6 {[%emt 0:00:16]} (37. Bxb6 $1 $11 {was the only way to keep the balance.} a6 38. h4) 37... axb6 {[%emt 0:00:01]} 38. Ra6 $2 {[%emt 0:00:23][%mdl 8192]} (38. h4 $17) 38... b5 $2 {[%emt 0:00:01]} (38... Rb1+ 39. Be1 Nd3) 39. g3 $2 {[%emt 0:00:12]} (39. Ra1) 39... Rb1+ $19 {[%emt 0:00:01]} 40. Be1 {[%emt 0:00:04]} Nd3 {[%emt 0:00:02] Weighted Error Value: White=0.56/Black=0.31} 0-1

[Event "Szansa Chess Open 2022"]
[Site "Warsaw"]
[Date "2022.09.18"]
[Round "11.17"]
[White "Vasynda, Oleksandr"]
[Black "Hryszkiewicz, Michal"]
[Result "0-1"]
[ECO "D00"]
[WhiteElo "1866"]
[BlackElo "1815"]
[Annotator "NA COMBH"]
[PlyCount "68"]
[EventDate "2022.09.17"]
[EventCountry "POL"]
[SourceTitle "playchess.com"]
[Source "ChessBase"]
[SourceQuality "1"]
[TimeControl "900+10"]

1. d4 {[%emt 0:00:04]} d5 {[%emt 0:00:01]} 2. Bf4 {[%emt 0:00:01]} e6 {[%emt 0:00:06]} 3. e3 {[%emt 0:00:02]} Bd6 {[%emt 0:00:03]} 4. Bg3 {[%emt 0:00:01]} Nf6 {[%emt 0:00:05]} 5. Nf3 {[%emt 0:00:01]} O-O {[%emt 0:00:17]} 6. Bd3 {[%emt 0:00:03]} c5 {[%emt 0:00:08]} 7. c3 {[%emt 0:00:01]} Nc6 {[%emt 0:00:20]} 8. Nbd2 {[%emt 0:00:04]} Re8 {[%emt 0:00:07]} 9. Ne5 {[%emt 0:00:04]} Ne7 {[%emt 0:02:41]} 10. f4 {[%emt 0:00:58]} Nf5 {[%emt 0:00:20]} 11. Bf2 {[%emt 0:01:16]} c4 {[%emt 0:00:20]} 12. Bc2 {[%emt 0:00:06]} Be7 {[%emt 0:00:35]} 13. g4 {[%emt 0:00:54]} Nd6 {[%emt 0:00:02]} 14. Qf3 {[%emt 0:00:52]} b5 {[%emt 0:00:40]} 15. a3 {[%emt 0:00:10]} Bb7 {[%emt 0:00:03]} 16. h4 {[%emt 0:00:44]} a5 {[%emt 0:00:13]} 17. h5 {[%emt 0:00:14]} Nfe4 {[%emt 0:00:12]} 18. g5 {[%emt 0:00:50]} b4 {[%emt 0:01:06]} 19. g6 {[%emt 0:00:13]} f5 {[%emt 0:02:17]} 20. gxh7+ {[%emt 0:00:31]} Kxh7 {[%emt 0:00:17]} 21. Qg2 {[%emt 0:00:14]} Nxf2 {[%emt 0:02:21]} 22. Qg6+ {[%emt 0:00:18]} Kg8 {[%emt 0:00:22]} 23. h6 {[%emt 0:02:47]} Bf6 {[%emt 0:00:20]} 24. h7+ {[%emt 0:00:39]} Kh8 {[%emt 0:00:08]} 25. Qh5 {[%emt 0:01:00]} Bxe5 {[%emt 0:00:17]} 26. fxe5 {[%emt 0:00:19]} Nxh1 {[%emt 0:01:19]} 27. exd6 {[%emt 0:00:16]} Ng3 {[%emt 0:00:14]} 28. Qh3 {[%emt 0:00:02]} Qg5 {[%emt 0:00:18]} 29. O-O-O {[%emt 0:00:56]} bxc3 {[%emt 0:00:12]} 30. bxc3 {[%emt 0:00:06]} Qxe3 {[%emt 0:00:08]} 31. Kb2 {[%emt 0:00:15]} Rab8 {[%emt 0:00:08]} 32. Nb1 {[%emt 0:00:42]} Bc6+ {[%emt 0:00:13]} 33. Ka2 {[%emt 0:00:02]} Rb7 {[%emt 0:01:19]} 34. d7 {[%emt 0:00:14]} Bxd7 {[%emt 0:00:46]} 0-1

[Event "Szansa Chess Open 2022"]
[Site "Warsaw"]
[Date "2022.09.18"]
[Round "11.18"]
[White "Goraj, Barbara"]
[Black "Urbaniak, Karol"]
[Result "1-0"]
[ECO "B38"]
[WhiteElo "2121"]
[BlackElo "1598"]
[Annotator "TA"]
[PlyCount "63"]
[EventDate "2022.09.17"]
[EventCountry "POL"]
[SourceTitle "playchess.com"]
[Source "ChessBase"]
[SourceQuality "1"]
[TimeControl "900+10"]

{[%evp 11,63,29,41,35,33,34,56,51,120,72,70,52,75,54,52,60,52,53,63,58,58,54,33,29,33,27,49,23,57,45,53,55,43,47,50,60,68,50,63,14,16,13,30,29,133,132,132,138,121,131,517,517,1318,1338]} 1. e4 {[%emt 0:00:03]} c5 {[%emt 0:00:10]} 2. Nf3 {[%emt 0:00:02][%cal Bg1f3,Bf3d4,Bd4b5][%mdl 32]} Nc6 {[%emt 0:00:02]} 3. d4 {[%emt 0:00:02]} cxd4 {[%emt 0:00:02]} 4. Nxd4 {[%emt 0:00:01]} g6 {[%emt 0:00:01]} 5. c4 {[%emt 0:00:03]} Bg7 {[%emt 0:00:02]} 6. Be3 {[%emt 0:00:01]} Qb6 {[%emt 0:00:02][%cal Rc6d4] is now debated instead of 6...Nf6.} 7. Nb5 {[%emt 0:01:13] B38: Sicilian: Maroczy Bind with 5...Bg7 and 7...0-0.} Qa5+ {[%emt 0:00:03]} 8. N1c3 {[%emt 0:00:27]} a6 {[%emt 0:01:19]} 9. Nd4 {[%emt 0:00:08] White is slightly better.} Qb4 {[%emt 0:03:23] [#]} ({Black should try} 9... d6 $14) 10. Rb1 {[%emt 0:00:36]} ({White should play} 10. a3 $1 {[%cal Ra3b4]} Qa5 11. b4) 10... Nf6 $16 {[%emt 0:01:36] [#]} 11. f3 $146 {[%emt 0:00:40]} ({Predecessor:} 11. a3 Qd6 12. Be2 O-O 13. O-O Nxd4 14. Bxd4 Ng4 15. Bxg4 Bxd4 16. Nd5 Be5 17. f4 {0-1 (38) Alothman,S (1558)-Muwanguzi,D (2062) Chess.com INT 2021}) 11... d6 {[%emt 0:00:33]} 12. Be2 {[%emt 0:01:21]} O-O {[%emt 0:00:25]} 13. a3 {[%emt 0:00:43]} Qa5 {[%emt 0:00:24]} 14. O-O {[%emt 0:00:22]} Nxd4 {[%emt 0:00:34]} 15. Bxd4 {[%emt 0:00:06]} Be6 {[%emt 0:00:21]} 16. b4 {[%emt 0:02:15]} Qc7 {[%emt 0:00:22]} 17. Nd5 {[%emt 0:00:02]} Bxd5 {[%emt 0:00:32]} 18. exd5 {[%emt 0:00:22]} Rfd8 {[%emt 0:02:53][%cal Ob7b5]} 19. Rc1 {[%emt 0:01:14]} Qd7 {[%emt 0:00:22]} 20. Bb6 {[%emt 0:00:14]} Re8 {[%emt 0:00:27]} 21. Qd2 {[%emt 0:00:52]} e6 {[%emt 0:00:22]} 22. dxe6 $1 {[%emt 0:00:37]} Qxe6 {[%emt 0:00:23]} 23. Rfe1 {[%emt 0:00:24]} d5 {[%emt 0:00:19]} 24. Bf2 {[%emt 0:00:52]} Rad8 {[%emt 0:01:08]} 25. cxd5 {[%emt 0:02:19]} (25. c5 $14) 25... Rxd5 {[%emt 0:00:25]} 26. Qa2 {[%emt 0:00:46] aiming for Bc4.} Qd7 {[%emt 0:00:28]} 27. Bc4 {[%emt 0:00:49][%cal Be2c4,Bc4f7,Bf7e8][%mdl 32]} Rde5 {[%emt 0:02:04] [#]} (27... Rd6 $1 $11) 28. Red1 $1 $36 {[%emt 0:00:30][%mdl 2048] White has strong initiative.} Qe7 {[%emt 0:00:44]} 29. Bc5 {[%emt 0:00:22] White is more active.} ({But not} 29. Bd4 Bh6 $14) 29... Rxc5 {[%emt 0:00:09]} 30. bxc5 {[%emt 0:00:03]} Nd7 $2 {[%emt 0:00:10][%mdl 8192]} (30... Qxc5+ $16 31. Kh1 Qe7) 31. Bxf7+ $18 {[%emt 0:00:14]} Kf8 {[%emt 0:00:22]} (31... Qxf7 $142 32. Qxf7+ Kxf7 33. Rxd7+ Re7) 32. Bxe8 {[%emt 0:00:07] Weighted Error Value: White=0.09 (flawless) /Black=0.43} 1-0

[Event "Szansa Chess Open 2022"]
[Site "Warsaw"]
[Date "2022.09.18"]
[Round "11.19"]
[White "Celinski, Kamil"]
[Black "Rak, Maciej"]
[Result "0-1"]
[ECO "B28"]
[WhiteElo "1959"]
[BlackElo "1866"]
[Annotator "TA"]
[PlyCount "68"]
[EventDate "2022.09.17"]
[EventCountry "POL"]
[SourceTitle "playchess.com"]
[Source "ChessBase"]
[SourceQuality "1"]
[TimeControl "900+10"]

{[%evp 13,67,22,37,2,70,77,76,53,54,56,49,44,278,265,263,255,225,215,249,254,254,249,250,241,227,219,300,302,328,321,404,373,415,397,503,505,495,482,453,409,490,472,468,429,493,383,735,0,0,0,-9,-29995,189,-29996,-29997,-29999]} 1. e4 {[%emt 0:00:03]} c5 {[%emt 0:00:01]} 2. Nf3 {[%emt 0:00:02][%cal Bg1f3,Bf3d4,Bd4c6][%mdl 32]} a6 {[%emt 0:00:01]} 3. c4 {[%emt 0:00:07]} e6 {[%emt 0:00:02]} 4. Nc3 {[%emt 0:00:02]} Qc7 {[%emt 0:00:04]} 5. d4 {[%emt 0:00:17]} cxd4 {[%emt 0:00:02]} 6. Nxd4 {[%emt 0:00:06]} Nf6 {[%emt 0:00:05]} 7. Be3 {[%emt 0:00:11]} Bb4 {[%emt 0:00:28]} 8. f3 {[%emt 0:00:42] B41: Sicilian: Kan Variation: 5 c4.} (8. Qb3 $5 {[%cal Rb3b4]} Bc5 9. f3 $14) 8... d5 {[%emt 0:00:55]} (8... Bxc3+ $11 9. bxc3 O-O) 9. Qa4+ $14 {[%emt 0:02:03]} ({Much worse is} 9. cxd5 Bxc3+ 10. bxc3 exd5 $11) 9... Nc6 {[%emt 0:00:30]} 10. cxd5 {[%emt 0:03:11] White is better.} exd5 {[%emt 0:00:26]} 11. Nxc6 {[%emt 0:01:43]} Bxc3+ {[%emt 0:00:28]} 12. bxc3 {[%emt 0:00:02] [#]} O-O $146 {[%emt 0:06:19]} (12... bxc6 $14 13. exd5 O-O) ({Predecessor:} 12... bxc6 13. exd5 O-O 14. Qxc6 Qe5 15. Kf2 Bd7 16. Qc5 Rab8 17. Be2 Rfe8 18. Rab1 Rxb1 19. Rxb1 Nxd5 {0-1 (35) San Diego,J (1836)-Sebt Rasoul,S (2012) Tornelo INT 2020}) 13. e5 $18 {[%emt 0:00:25]} Ne8 {[%emt 0:04:10]} 14. Bc5 {[%emt 0:01:02] [#] And now Ne7+ would win.} bxc6 {[%emt 0:01:11]} 15. Qd4 {[%emt 0:00:19]} ({But not} 15. Bxf8 Kxf8 16. Qd4 g6) 15... f6 {[%emt 0:00:46]} 16. Bxf8 {[%emt 0:00:06]} Kxf8 {[%emt 0:00:02]} 17. exf6 {[%emt 0:00:11]} Nxf6 {[%emt 0:00:04]} 18. Qc5+ {[%emt 0:00:33]} Kg8 {[%emt 0:00:17]} 19. Be2 {[%emt 0:00:20]} Rb8 {[%emt 0:00:58]} 20. O-O {[%emt 0:00:19]} Rb2 {[%emt 0:00:39]} 21. Rfe1 {[%emt 0:00:29]} Bf5 {[%emt 0:00:28]} 22. Bf1 {[%emt 0:00:19]} h5 {[%emt 0:00:15]} 23. Re7 {[%emt 0:01:21]} Qf4 {[%emt 0:00:29]} 24. Qxc6 {[%emt 0:01:12]} h4 {[%emt 0:00:17]} 25. Qc7 {[%emt 0:00:14]} Qg5 {[%emt 0:00:12]} 26. Qe5 {[%emt 0:00:33]} Qg6 {[%emt 0:00:09]} 27. c4 {[%emt 0:00:44]} Rc2 {[%emt 0:00:10]} 28. cxd5 {[%emt 0:00:31]} Bd3 {[%emt 0:00:10] Threatens to win with ...Bxf1.} 29. Qe1 {[%emt 0:00:24]} h3 $2 {[%emt 0:00:10]} (29... Bxf1 30. Qxf1 Nxd5) 30. Qg3 $2 {[%emt 0:01:06]} (30. Qe6+ $18 Kh8 31. Qxh3+ Kg8 32. d6 Bxf1 33. Rxf1) 30... Qxg3 $11 {[%emt 0:00:08] The board is on fire.} 31. hxg3 {[%emt 0:00:09]} Bxf1 {[%emt 0:00:02]} 32. Rxf1 $2 {[%emt 0:00:07][%mdl 8192]} ({Avoid the trap} 32. Kxf1 $2 h2 33. Re2 h1=Q+ $19) (32. gxh3 $11 Bxh3 33. g4) 32... Rxg2+ {[%emt 0:00:01]} 33. Kh1 {[%emt 0:00:01] [#] Hoping for Re5.} Nh5 $1 {[%emt 0:00:04][%cal Rh5g3]} 34. Rf2 {[%emt 0:01:22]} Nxg3# {[%emt 0:00:03] Weighted Error Value: White=0.43/Black=0.48} 0-1